Cogmind - Beta 16 @@@ ROGUE MODE // 2026.01.06 @ 01:09:48 Player: Rune Result: Destroyed by D-53 Grenadier with Mini Grenade Launcher Performance ------------- Evolutions (1) 500 Regions Visited (4) 800 Robots Destroyed (11) 55 Value Destroyed (151) 151 Prototype IDs (0) 0 Alien Tech Used (0) 0 Bonus (-81) -81 TOTAL SCORE: 1425 Bonus ------- Friendly Fire -81 Cogmind --------- Core Integrity 0/400 Matter 203/300 Energy 63/100 System Corruption 0% Temperature Cool (30) Movement Core (200) Ox3 Location -9/Mines Parts ------- > --- POWER (1) -------- (None) > --- PROPULSION (2) --- (None) > --- UTILITY (3) ------ Small Storage Unit Structural Scanner > --- WEAPON (3) ------- Particle Cannon > --- INVENTORY (8) ---- Light Ion Engine Peak State ------------ > --- POWER ------------ Ion Engine > --- PROPULSION ------- Aluminum Leg Aluminum Leg > --- UTILITY ---------- Small Storage Unit Structural Scanner Targeting Computer > --- WEAPON ----------- Heavy EM Pulse Gun Assault Rifle Mini Grenade Launcher > --- INVENTORY -------- Light Ion Engine Particle Cannon Mining Laser [Rating: 11] Favorites ----------- Power Light Ion Engine Engine Light Ion Engine Propulsion Aluminum Leg Leg Aluminum Leg Wheel Wheel Utility Small Storage Unit Device Seismic Detector Storage Small Storage Unit Processor Targeting Computer Weapon Assault Rifle Energy Gun EM Pulse Gun Energy Cannon Particle Cannon Ballistic Gun Assault Rifle Launcher Mini Grenade Launcher Special Weapon Mining Laser Build | -11 -10 -10 -9 -9 ------- Run | Yrd Mat Min Mat Min Slots Evolved 2 | . . . 2 . Power . | . . . . . Propulsion . | . . . . . Utility 1 | . . . 1 . Weapon 1 | . . . 1 . Parts Attached 16 | 7 3 2 3 1 Power 2 | 1 . 1 . . Engine 2 | 1 . 1 . . Core . | . . . . . Reactor . | . . . . . Propulsion 3 | 3 . . . . Treads . | . . . . . Leg 2 | 2 . . . . Wheel 1 | 1 . . . . Hover . | . . . . . Flight . | . . . . . Utility 4 | 1 1 1 1 . Device 2 | . 1 . 1 . Storage 1 | 1 . . . . Processor 1 | . . 1 . . Hackware . | . . . . . Protection . | . . . . . Artifact . | . . . . . Weapon 7 | 2 2 . 2 1 Energy Gun 2 | 1 . . 1 . Energy Cannon 1 | . . . . 1 Ballistic Gun 2 | 1 1 . . . Ballistic Cannon . | . . . . . Launcher 1 | . . . 1 . Special Weapon 1 | . 1 . . . Impact Weapon . | . . . . . Slashing Weapon . | . . . . . Piercing Weapon . | . . . . . Special Melee Weapon . | . . . . . Unidentified Prototypes . | . . . . . Parts Lost 11 | . 3 1 . 7 Power 2 | . 1 . . 1 Propulsion 2 | . . . . 2 Utility 2 | . . 1 . 1 Weapon 5 | . 2 . . 3 Highest Loss Streak 4 | . 2 1 . 4 To Critical Strikes . | . . . . . Average Backups 1 | 1 2 1 1 2 Power . | . . . 1 1 Propulsion . | . . . . . Utility . | . . 1 . . Weapon . | . 1 . . 1 Tool/Special . | . . . . . Unused Backups 1 | 1 . . . . Power 1 | 1 . . . . Propulsion . | . . . . . Utility . | . . . . . Weapon . | . . . . . Tool/Special . | . . . . . Average Slot Usage (%) 91 | . 92 90 97 71 Engine 9 | . 10 7 11 9 Leg 25 | . 28 28 22 6 Device 9 | . 11 4 11 11 Storage 13 | . 14 14 11 11 Processor 4 | . . 7 11 3 Energy Gun 7 | . 10 . 8 9 Ballistic Gun 13 | . 14 14 11 9 Launcher 1 | . . . 1 9 Special Weapon 5 | . 1 14 9 . Peak Build Rating 11 | 6 7 7 11 11 Average Rating 6 | 3 6 6 9 7 On Entrance 6 | . 6 6 7 11 Avg Prop Armor Cover (%) . | . . . . . Naked Turns . | . . . . . Heaviest Build 17 | 12 13 13 17 17 Greatest Support 20 | 20 20 20 20 20 Greatest Overweight (x) 5 | . . . . 5 Average Overweight (x) . | . . . . 3 Largest Inventory Capacity 8 | 8 8 8 8 8 Average Capacity 7 | 6 8 8 8 8 Most Carried 5 | 5 4 2 3 2 Average Carried 1 | 1 2 1 1 1 Final Capacity 8 | 8 8 8 8 8 Final Carried 2 | 1 2 2 2 1 Class Distribution -------------------- 76% | Mutant 21% | Gunner Dominant Class ---------------- Mutant | -10/Materials Mutant | -10/Mines Gunner | -9/Materials Skirmisher | -9/Mines Resources | -11 -10 -10 -9 -9 ----------- Run | Yrd Mat Min Mat Min Matter Collected 501 | 226 148 95 32 . Remotely . | . . . . . Salvage Created 248 | . 105 54 11 78 Parts 20 | . 7 10 . 3 Haulers Intercepted . | . . . . . Recyclers Shooed 4 | 1 2 . 1 . Parts Field Recycled . | . . . . . Retrieved Matter . | . . . . . Parts Self-Destructed . | . . . . . Prevented . | . . . . . Parts Restored . | . . . . . Kills | -11 -10 -10 -9 -9 ------- Run | Yrd Mat Min Mat Min Combat Hostiles Destroyed 23 | . 4 3 . 16 Guns 6 | . 4 2 . . Cannons 1 | . . 1 . . AOE 16 | . . . . 16 Classes Destroyed 6 | . 3 1 . 2 Builder 1 | . . 1 . . Tunneler 1 | . . . . 1 Watcher 2 | . 1 . 1 . Swarmer 6 | . 3 3 . . Grunt 1 | . 1 . . . Assembled 16 | . . . . 16 Best Kill Streak 16 | . 2 3 1 16 Combat Bots Only 16 | . 2 3 . 16 Max Kills in Single Turn 4 | . 1 1 1 4 Gunslinging . | . . . . . Exploded 4 | . . . . 4 Melee . | . . . . . Uniques/NPCs Destroyed . | . . . . . Combat | -11 -10 -10 -9 -9 -------- Run | Yrd Mat Min Mat Min Hostile Shots Fired 96 | . 55 13 . 28 Missed 19 | . 15 2 . 2 Hits 77 | . 40 11 . 26 Melee 1 | . . . . 1 Projectile 76 | . 40 11 . 25 AOE 12 | . . . . 12 Critical Strikes 3 | . 3 . . . Part Disruptions 2 | . . . . 2 Damage Taken 1407 | 2 548 90 . 767 Core 596 | . 164 31 . 401 Absorbed by Shields . | . . . . . Core Remaining (%) 61 | 100 . 22 . . Volleys Fired 63 | . 38 10 2 13 Largest 3 | . 2 2 2 3 Hottest 120 | . 60 120 65 98 Shots Fired 110 | . 71 12 4 23 Gun 94 | . 71 10 4 9 Cannon 3 | . . . . 3 Launcher 11 | . . . . 11 Special 2 | . . 2 . . Kinetic 64 | . 48 10 2 4 Thermal 5 | . . 2 . 3 Explosive 11 | . . . . 11 Electromagnetic 30 | . 23 . 2 5 Robot Hit Streak 8 | . 8 3 1 5 Robot Miss Streak 5 | . 5 1 1 3 Penetration Max . | . . . . . Secondary Targets . | . . . . . Shots Hit Robots 61 | . 43 8 2 8 Core Hits 46 | . 9 4 1 32 Critical Kills . | . . . . . Critical Parts Destroyed . | . . . . . Critical Strikes . | . . . . . Melee Attacks . | . . . . . Impact . | . . . . . Slashing . | . . . . . Piercing . | . . . . . Sneak Attacks . | . . . . . Combat Hostiles . | . . . . . Follow-up Attacks . | . . . . . Damage Inflicted 1953 | 4 624 125 35 1165 Guns 716 | . 572 77 26 41 Cannons 20 | . . . . 20 Explosions 1146 | . 42 . . 1104 Melee . | . . . . . Ramming 23 | 4 10 . 9 . Kinetic 507 | . 404 77 26 . Thermal 110 | . 42 48 . 20 Explosive 1104 | . . . . 1104 Electromagnetic 209 | . 168 . . 41 Impact . | . . . . . Slashing . | . . . . . Piercing . | . . . . . Highest Corruption . | . . . . . Average Corruption . | . . . . . Corruption Purged . | . . . . . Corruption Blocked . | . . . . . Overload Shots . | . . . . . Overflow Damage 41 | . 21 4 . 16 Projectiles 4 | . . 4 . . Explosions 37 | . 21 . . 16 Melee . | . . . . . Knockbacks . | . . . . . Impact . | . . . . . Kinetic . | . . . . . Secondary . | . . . . . Self-Inflicted Damage 116 | 2 38 . . 76 Shots 5 | . 1 . . 4 Rammed 1 | 1 . . . . Targets Rammed 8 | 1 3 . 4 . Kicked 7 | . 3 . 4 . Crushed . | . . . . . Highest Temperature 159 | . 59 . . 159 Average Temperature 52 | . 25 . . 68 Received Heat Transfer 386 | . 306 . . 80 Siege Activations . | . . . . . Martial Activations . | . . . . . Shielding Activations . | . . . . . Robots Disrupted . | . . . . . Combat Hostiles . | . . . . . Robots Corrupted . | . . . . . Combat Hostiles . | . . . . . Parts Fried . | . . . . . Impact Corruptions . | . . . . . Robots Melted . | . . . . . Combat Hostiles . | . . . . . Parts Melted . | . . . . . Heat Transferred 237 | . 100 100 . 37 Parts Sabotaged . | . . . . . Parts Stolen . | . . . . . Parts Stripped . | . . . . . Power Chain Reactions 1 | . 1 . . . Alert | -11 -10 -10 -9 -9 ------- Run | Yrd Mat Min Mat Min Maximum Alert Level . | . . . . . Low Security (%) 100 | 100 100 100 100 100 Level 1 . | . . . . . Level 2 . | . . . . . Level 3 . | . . . . . Level 4 . | . . . . . Level 5 . | . . . . . High Security . | . . . . . Max Security . | . . . . . Peak Influence 65 | . 55 65 15 10 Initial 1 | . . . . 1 Average 14 | . 16 27 2 3 Influence Increases 339 | . 168 90 37 44 Destroy 0b10 Robot/C 140 | . 80 60 . . Destroy 0b10 Robot/NC 20 | . 5 5 5 5 Destroy Leader 34 | . 22 10 2 . Successful Hack 14 | . 14 . . . Destroy Structure 41 | . 2 . . 39 Partial Spotted 15 | . 15 . . . Lose Combat Pursuer 75 | . 30 15 30 . Influence Decreases 339 | . 168 90 32 49 Entered New Map 4 | . . . . 4 Time Decay 270 | . 148 80 32 10 Lost Part 65 | . 20 10 . 35 Squads Dispatched . | . . . . . Investigation . | . . . . . Extermination . | . . . . . Reinforcement . | . . . . . Assault . | . . . . . Garrison . | . . . . . Intercept . | . . . . . Searches Triggered . | . . . . . Construction Impeded . | . . . . . Haulers Reinforced . | . . . . . Active Scanning Responses . | . . . . . Cargo Convoy Interrupts . | . . . . . Stealth | -11 -10 -10 -9 -9 --------- Run | Yrd Mat Min Mat Min Distress Signals 3 | . 1 . 2 . Communications Jammed . | . . . . . Distress Signals . | . . . . . Times Spotted 43 | . 14 4 3 22 Peak Tracking Total 20 | . 4 3 3 20 Tactical Retreats 4 | . 1 1 2 . Traps | -11 -10 -10 -9 -9 ------- Run | Yrd Mat Min Mat Min Traps Triggered . | . . . . . Indirectly . | . . . . . Trap Hack Attempts . | . . . . . Triggered . | . . . . . Disarmed . | . . . . . Reprogrammed . | . . . . . Reused . | . . . . . Traps Extracted . | . . . . . Installed . | . . . . . Triggered . | . . . . . Machines | -11 -10 -10 -9 -9 ---------- Run | Yrd Mat Min Mat Min Machines Disabled . | . . . . . Max in Single Turn . | . . . . . Machines Repaired . | . . . . . Machines Dismantled . | . . . . . Machines Sabotaged . | . . . . . Overloaded Fab Kills . | . . . . . Hacking | -11 -10 -10 -9 -9 --------- Run | Yrd Mat Min Mat Min Machines Accessed 4 | . 3 . 1 . Terminals 2 | . 1 . 1 . Fabricators . | . . . . . Repair Stations 1 | . 1 . . . Recycling Units 1 | . 1 . . . Scanalyzers . | . . . . . Garrison Access . | . . . . . Total Hacks 5 | . 4 . 1 . Successful 4 | . 3 . 1 . Failed 1 | . 1 . . . Catastrophic . | . . . . . Database Lockouts . | . . . . . Manual . | . . . . . Terminals 2 | . 1 . 1 . Fabricators . | . . . . . Repair Stations 2 | . 2 . . . Recycling Units 1 | . 1 . . . Scanalyzers . | . . . . . Garrison Access . | . . . . . Terminal Hacks 2 | . 1 . 1 . Record 2 | . 1 . 1 . Fabricator Hacks . | . . . . . Repair Station Hacks 2 | . 2 . . . Scan Component 2 | . 2 . . . Recycling Unit Hacks . | . . . . . Scanalyzer . | . . . . . Garrison Access Hacks . | . . . . . Unauthorized Hacks . | . . . . . Terminals . | . . . . . Fabricators . | . . . . . Repair Stations . | . . . . . Recycling Units . | . . . . . Scanalyzers . | . . . . . Garrison Access . | . . . . . Data Cores Recovered . | . . . . . Used . | . . . . . Hacking Detections 1 | . 1 . . . Full Trace Events . | . . . . . Feedback Events . | . . . . . Feedback Blocked . | . . . . . Robot Schematics Acquired . | . . . . . Robots Built . | . . . . . Authchips . | . . . . . Time . | . . . . . Total Robot Build Rating . | . . . . . Part Schematics Acquired . | . . . . . Parts Built . | . . . . . Authchips . | . . . . . Time . | . . . . . Total Part Build Rating . | . . . . . Part Studies Acquired . | . . . . . Parts Repaired . | . . . . . Time . | . . . . . Parts Recycled . | . . . . . Recycled Matter . | . . . . . Retrieved Matter . | . . . . . Retrieved Components . | . . . . . Parts Scanalyzed . | . . . . . Part Schematics Acquired . | . . . . . Parts Damaged . | . . . . . Bothacking | -11 -10 -10 -9 -9 ------------ Run | Yrd Mat Min Mat Min Used RIF Installer . | . . . . . Robots Hacked . | . . . . . Non-combat . | . . . . . Combat . | . . . . . Robot Hacks Applied . | . . . . . Relay Couplers Released . | . . . . . Fabnet Peak Effective % . | . . . . . Robots Rewired . | . . . . . Allies Hacked . | . . . . . Hacks Repelled . | . . . . . Allies | -11 -10 -10 -9 -9 -------- Run | Yrd Mat Min Mat Min Total Allies . | . . . . . Largest Group . | . . . . . Highest-Rated Group . | . . . . . Highest-Rated Ally . | . . . . . Total Orders . | . . . . . Ally Attacks . | . . . . . Total Damage . | . . . . . Kills . | . . . . . Allies Corrupted . | . . . . . Allies Melted . | . . . . . Intel | -11 -10 -10 -9 -9 ------- Run | Yrd Mat Min Mat Min Active Infowar (turns) 673 | . 372 63 181 57 Structural 238 | . . . 181 57 Seismic 435 | . 372 63 . . Robot Analysis Total . | . . . . . Derelict Logs Recovered 1 | . . 1 . . Drone Launches . | . . . . . Drone Recoveries . | . . . . . Exploration | -11 -10 -10 -9 -9 ------------- Run | Yrd Mat Min Mat Min Turns Passed 963 | 66 444 215 181 57 Spaces Moved 606 | 49 258 155 135 9 Core 31 | 24 . . . 7 Treads . | . . . . . Legs 573 | 23 258 155 135 2 Wheels 2 | 2 . . . . Hover . | . . . . . Flight . | . . . . . Fastest Speed 50 | 50 120 120 120 120 Average Speed 119 | 84 120 120 120 260 Slowest Speed 300 | 120 120 120 120 300 Overloaded Moves . | . . . . . Propulsion Burnouts . | . . . . . Robots Hopped . | . . . . . Potential Cave-ins . | . . . . . Cave-ins Triggered . | . . . . . Exploration Rate (%) 19 | 4 35 30 21 9 Regions Visited 4 Branch Regions 2 Pre-discovered Areas . | . . . . . Known Exits Taken . | . . . . . Unknown Exits Taken 4 | 1 1 1 1 . Scrap Searched 1 | . . 1 . . Spaces Dug . | . . . . . Terrain Destroyed 85 | . 2 . . 83 Melee . | . . . . . Projectile . | . . . . . AOE 85 | . 2 . . 83 Terrain Rammed . | . . . . . Walls Destroyed . | . . . . . Machines Disabled . | . . . . . Actions | -11 -10 -10 -9 -9 --------- Run | Yrd Mat Min Mat Min Total 739 | 77 321 168 150 23 Wait 16 | . 16 . . . Move 602 | 48 257 154 134 9 Hop . | . . . . . Pick Up 22 | 13 4 2 3 . Fast Attach . | . . . . . Attach 17 | 7 3 2 4 1 Detach 3 | 1 . . 2 . Swap 1 | 1 . . . . Drop 7 | 6 . . 1 . Fire 63 | . 38 10 2 13 Melee . | . . . . . Ram 1 | 1 . . . . Kick 7 | . 3 . 4 . Crush . | . . . . . Escape Stasis . | . . . . . Rewire . | . . . . . Trap . | . . . . . Miscellaneous . | . . . . . Route ------- -11/Scrapyard -10/Materials -10/Mines -9/Materials -9/Mines History --------- Turn | Location | Event 6 | -11/Scrapyard | Discovered new exit (range 15) 67 | -11/Scrapyard | Entered Materials 312 | -10/Materials | Build established: Mutant 423 | -10/Materials | Core integrity fell below 50% 504 | -10/Materials | Discovered new exit (range 7) 511 | -10/Materials | Entered Mines 652 | -10/Mines | Learned Materials terminal intel 719 | -10/Mines | Discovered new exit (range 5) 726 | -10/Mines | Entered Materials 726 | -9/Materials | Evolved 2 slots: Utility x1, Weapon x1 727 | -9/Materials | Loaded intel: 12 terminal locations 893 | -9/Materials | Discovered new exit (range 11) 907 | -9/Materials | Entered Mines 908 | -9/Mines | Assembled infested the area 913 | -9/Mines | Assisted by a Guerilla fighting off Assembled 947 | -9/Mines | Destroyed 16 combat bots 950 | -9/Mines | Lost 3 parts (2n1u) 957 | -9/Mines | Core integrity fell below 50% 963 | -9/Mines | Core integrity fell below 20% 964 | -9/Mines | Destroyed by D-53 Grenadier with Mini Grenade Launcher Last Messages --------------- The unstable cave ceiling collapses. T-07 Excavator is excavating. The unstable cave ceiling collapses. T-07 Excavator is excavating. The unstable cave ceiling collapses. U-05 Engineer lays Concrete. U-05 Engineer destroyed. T-07 Excavator is excavating. J5-ZPD(h) destroyed. T-07 Excavator is excavating. The unstable cave ceiling collapses. Assault Rifle destroyed. The unstable cave ceiling collapses. T-07 Excavator destroyed. Ion Engine destroyed. The unstable cave ceiling collapses. Hvy. EM Pulse Gun destroyed. Mni. Grenade Launcher destroyed. The unstable cave ceiling collapses. U-05 Engineer lays Concrete. Map ----- +----------------------------------------------------+ | ????????????????????????????????????????????????? | | ????????????????????????????????????????????????? | | ????????????????????????????????????????????????? | | ????????????????????????????????????????????????? | | ????????????????????????????????????????????????? | | ????????????????????????????????????????????????? | | ????????????????????????????????????????????????? | | ????????????????????????????????????????????????? | | ????????????????????????????????????????????????? | | ????????????????????????????????????????????????? | | ????????????????????????????????????????????????? | | ??????????????????????????????????#####?????????? | | ????????????????????????????????###### ?????????? | | ???????????????????????????????#### ?????????? | | ??????????????????????????????### ??????????? | | ????????????????????????????#### #?????????? | | ??????????????????###???????### ##?????????? | | ????????????????##### ##????## ###?????????? | | ?????????????####### ###??### #######??????? | | ???????????? $#### = ####### ########??????? | | ???????????? !% u# ##### #### ##??????? | | ??????????? * # #??????? | | ??????????? d ##??????? | | ??????????" d # ##???????? | | ?????????? # ###?????????? | | ?????????? < @ ##??????????? | | ?????????? # ###??????????? | | ???????????? # # ####??????????? | | ????????????###### # # ###???????????? | | ??????????????#### # # ####????????????? | | ????????????????### # #########????????????? | | ????????????????#### # # ########?????????????? | | ?????????????????############???????????????????? | | | | | | | | | | | | | | | | | | | | | | | | | | | | | | | | | | | +----------------------------------------------------+ Best States ------------- Heat Dissipation 28 Energy Generation 10 Energy Capacity 250 Matter Stores 300 Matter Capacity 300 Sight Range 16 Terrain Scan Density 10 Evasion (%) 55 Targeting Accuracy 5 Item Schematics ----------------- None Robot Schematics ------------------ None Fabricated ------------ Nothing Repaired ---------- Nothing Studied --------- None Alien Tech Used ----------------- None Achievements -------------- Exterminator Hunted Challenges ------------ None Game ------ Seed TransmissionRemoteLegs Manual? 0 Play Time 00:14:42 Cumulative 14.1 hours Start 2026.01.06 @ 00:56:16 End 2026.01.06 @ 01:09:48 Sessions 1 Manual Loads 0 Difficulty Rogue Special Mode None Game No. 46 Rogue 46 Adventurer 0 Explorer 0 Win Type - Total 0 Types 0/0/0/0/0/0/0/0/0/0 Lore% 5 Gallery% 13 Achievement% 11 Wizard Run 0 Options --------- Layout 1 ASCII 0 Keyboard 1 Movement Numpad Keybinds 0 Fullscreen 1 Font 32/SmallcapsGlow Map View 50x35 Zoom Use 0% Tactical HUD 0 Map Filters NONE Filters NONE Steam 1 RUN: 4b04e6c8-fa7c-4ed9-a3ec-fee5c9a1aecf